fUST/lending_fUST_20250522
["ID","MTS","AMOUNT","RATE_DAILY","PERIOD"]
[361976973,1747917043689,-430.0,0.00022739,2]
[361976974,1747917043699,-1000.0,0.00022758,2]
[361976975,1747917043708,-500.0,0.00022806,2]
[361976976,1747917043718,-3398.76374436,0.00022831,8]
[361976977,1747917043728,-572.36557685,0.00022996,2]
[361976978,1747917043737,-160.0,0.00023,3]
[361976979,1747917043746,-422.78357425,0.00023,3]
[361976980,1747917043755,-160.0,0.00023,3]
[361976981,1747917043765,-450.24252333,0.00023,2]
[361976982,1747917043775,-430.0,0.00023013,2]
[361976983,1747917043784,-761.92,0.00023013,2]
[361976984,1747917043793,-486.29,0.00023013,2]
[361976985,1747917043803,-430.0,0.00023013,2]
[361976986,1747917043812,-864.01,0.00023013,2]
[361976987,1747917043821,-430.0,0.00023013,2]
[361976989,1747917043831,-430.0,0.00023013,2]
[361976991,1747917043840,-700.05,0.00023013,2]
[361976993,1747917043849,-430.0,0.00023013,2]
[361976994,1747917043859,-430.0,0.00023013,2]
[361976995,1747917043868,-478.52,0.00023013,2]
[361976996,1747917043878,-847.46,0.00023013,2]
[361976997,1747917043887,-768.57,0.00023013,2]
[361976998,1747917043896,-550.47,0.00023013,2]
[361976999,1747917043906,-430.0,0.00023013,2]
[361977000,1747917043915,-430.0,0.00023013,2]
[361977001,1747917043926,-430.0,0.00023013,2]
[361977002,1747917043935,-430.0,0.00023013,2]
[361977003,1747917043946,-450.0,0.00023013,2]
[361977004,1747917044064,-430.0,0.00023013,2]
[361977005,1747917044078,-592.36,0.00023013,2]
[361977006,1747917044088,-496.07,0.00023013,2]
[361977007,1747917044098,-5116.24,0.00023013,2]
[361977008,1747917044108,-1561.74,0.00023013,2]
[361977009,1747917044121,-430.0,0.00023013,2]
[361977010,1747917044130,-430.0,0.00023013,2]
[361977011,1747917044139,-1289.79,0.00023013,2]
[361977012,1747917044149,-721.42,0.00023013,2]
[361977013,1747917044159,-430.0,0.00023013,2]
[361977014,1747917044169,-619.16,0.00023013,2]
[361977015,1747917044179,-727.87,0.00023013,2]
[361977016,1747917044188,-430.0,0.00023013,2]
[361977017,1747917044198,-430.0,0.00023013,2]
[361977018,1747917044207,-1980.78,0.00023013,2]
[361977019,1747917044217,-512.33,0.00023013,2]
[361977020,1747917044227,-796.1,0.00023013,2]
[361977021,1747917044236,-430.0,0.00023013,2]
[361977022,1747917044246,-430.0,0.00023013,2]
[361977023,1747917044255,-430.0,0.00023013,2]
[361977024,1747917044264,-3666.99,0.00023013,2]
[361977025,1747917044274,-430.0,0.00023013,2]
[361977026,1747917044283,-602.86,0.00023013,2]
[361977027,1747917044292,-1810.6,0.00023013,2]
[361977028,1747917044302,-738.79,0.00023013,2]
[361977029,1747917044311,-430.0,0.00023013,2]
[361977030,1747917044320,-682.98,0.00023013,2]
[361977031,1747917044330,-687.33,0.00023013,2]
[361977032,1747917044339,-430.0,0.00023013,2]
[361977033,1747917044348,-602.34,0.00023013,2]
[361977034,1747917044358,-483.43098878,0.00023013,2]
[361977035,1747917044369,-698.82,0.00023013,2]
[361977036,1747917044379,-1833.09,0.00023013,2]
[361977037,1747917044388,-2202.28,0.00023013,2]
[361977038,1747917044398,-1114.55,0.00023013,2]
[361977039,1747917044408,-1416.81,0.00023013,2]
[361977040,1747917044417,-1799.13,0.00023013,2]
[361977041,1747917044426,-513.58876216,0.00023013,2]
[361977042,1747917044436,-791.88,0.00023013,2]
[361977043,1747917044445,-430.0,0.00023013,2]
[361977044,1747917044455,-739.77,0.00023013,2]
[361977045,1747917044464,-708.22,0.00023013,2]
[361977046,1747917044474,-976.61,0.00023013,2]
[361977047,1747917044484,-430.0,0.00023013,2]
[361977048,1747917044494,-1058.22,0.00023013,2]
[361977049,1747917044503,-430.0,0.00023013,2]
[361977050,1747917044513,-778.07,0.00023013,2]
[361977051,1747917044522,-877.65,0.00023013,2]
[361977052,1747917044532,-1986.23,0.00023013,2]
[361977053,1747917044541,-886.94,0.00023013,2]
[361977054,1747917044551,-430.0,0.00023013,2]
[361977055,1747917044560,-2574.06,0.00023013,2]
[361977056,1747917044570,-430.0,0.00023013,2]
[361977057,1747917044580,-430.0,0.00023013,2]
[361977058,1747917044590,-430.0,0.00023013,2]
[361977059,1747917044599,-5398.79,0.00023013,2]
[361977060,1747917044608,-430.0,0.00023013,2]
[361977061,1747917044620,-1608.73,0.00023013,2]
[361977062,1747917044629,-430.0,0.00023013,2]
[361977063,1747917044639,-658.86,0.00023013,2]
[361977064,1747917044648,-963.68,0.00023013,2]
[361977065,1747917044658,-1076.71,0.00023013,2]
[361977066,1747917044667,-1402.37,0.00023013,2]
[361977067,1747917044677,-430.0,0.00023013,2]
[361977068,1747917044686,-3398.76374436,0.00023038,8]
[361977069,1747917044696,-600.0,0.0002304,2]
[361977070,1747917044705,-3398.76374436,0.00023245,8]
[361977071,1747917044714,-500.0,0.00023255,2]
[361977072,1747917044723,-500.0,0.00023255,2]
[361977073,1747917044735,-500.0,0.00023255,2]
[361977074,1747917044744,-606.19955931,0.0002328,2]
[361977075,1747917044753,-430.0,0.00023287,2]
[361977076,1747917044763,-761.92,0.00023287,2]
[361977077,1747917044772,-486.29,0.00023287,2]
[361977078,1747917044782,-430.0,0.00023287,2]
[361977079,1747917044791,-864.01,0.00023287,2]
[361977080,1747917044801,-430.0,0.00023287,2]
[361977081,1747917044810,-430.0,0.00023287,2]
[361977082,1747917044819,-700.05,0.00023287,2]
[361977083,1747917044828,-430.0,0.00023287,2]
[361977084,1747917044838,-430.0,0.00023287,2]
[361977085,1747917044850,-478.52,0.00023287,2]
[361977086,1747917044859,-847.46,0.00023287,2]
[361977087,1747917044871,-768.57,0.00023287,2]
[361977088,1747917044881,-550.47,0.00023287,2]
[361977089,1747917044891,-430.0,0.00023287,2]
[361977090,1747917044901,-430.0,0.00023287,2]
[361977091,1747917044910,-430.0,0.00023287,2]
[361977092,1747917044919,-430.0,0.00023287,2]
[361977093,1747917044929,-430.0,0.00023287,2]
[361977094,1747917044939,-592.36,0.00023287,2]
[361977095,1747917044949,-496.07,0.00023287,2]
[361977096,1747917044959,-5116.24,0.00023287,2]
[361977097,1747917044969,-1561.74,0.00023287,2]
[361977098,1747917044980,-430.0,0.00023287,2]
[361977099,1747917044991,-430.0,0.00023287,2]
[361977100,1747917045001,-1289.79,0.00023287,2]
[361977101,1747917045015,-721.42,0.00023287,2]
[361977102,1747917045027,-430.0,0.00023287,2]
[361977103,1747917045038,-619.16,0.00023287,2]
[361977104,1747917045049,-727.87,0.00023287,2]
[361977105,1747917045060,-430.0,0.00023287,2]
[361977106,1747917045072,-579.76962358,0.00023287,2]
[361977107,1747917045083,-1980.78,0.00023287,2]
[361977108,1747917045096,-512.33,0.00023287,2]
[361977109,1747917045107,-796.1,0.00023287,2]
[361977110,1747917045122,-430.0,0.00023287,2]
[361977111,1747917045133,-430.0,0.00023287,2]
[361977112,1747917045145,-430.0,0.00023287,2]
[361977113,1747917045159,-3666.99,0.00023287,2]
[361977114,1747917045170,-430.0,0.00023287,2]
[361977115,1747917045182,-602.86,0.00023287,2]
[361977116,1747917045193,-1810.6,0.00023287,2]
[361977117,1747917045204,-738.79,0.00023287,2]
[361977118,1747917045214,-430.0,0.00023287,2]
[361977119,1747917045226,-682.98,0.00023287,2]
[361977120,1747917045237,-687.33,0.00023287,2]
[361977121,1747917045247,-430.0,0.00023287,2]
[361977122,1747917045258,-602.34,0.00023287,2]
[361977123,1747917045269,-698.82,0.00023287,2]
[361977124,1747917045280,-1833.09,0.00023287,2]
[361977125,1747917045290,-2202.28,0.00023287,2]
[361977126,1747917045301,-1114.55,0.00023287,2]
[361977127,1747917045311,-1416.81,0.00023287,2]
[361977128,1747917045321,-1799.13,0.00023287,2]
[361977129,1747917045331,-791.88,0.00023287,2]
[361977130,1747917045341,-430.0,0.00023287,2]
[361977131,1747917045351,-739.77,0.00023287,2]
[361977132,1747917045361,-708.22,0.00023287,2]
[361977133,1747917045377,-976.61,0.00023287,2]
[361977134,1747917045387,-430.0,0.00023287,2]
[361977135,1747917045397,-1058.22,0.00023287,2]
[361977136,1747917045407,-430.0,0.00023287,2]
[361977137,1747917045417,-778.07,0.00023287,2]
[361977138,1747917045433,-877.65,0.00023287,2]
[361977139,1747917045445,-1986.23,0.00023287,2]
[361977140,1747917045456,-886.94,0.00023287,2]
[361977141,1747917045467,-430.0,0.00023287,2]
[361977142,1747917045479,-2574.06,0.00023287,2]
[361977143,1747917045488,-430.0,0.00023287,2]
[361977144,1747917045498,-430.0,0.00023287,2]
[361977145,1747917045507,-430.0,0.00023287,2]
[361977146,1747917045517,-5398.79,0.00023287,2]
[361977147,1747917045527,-430.0,0.00023287,2]
[361977148,1747917045537,-1608.73,0.00023287,2]
[361977149,1747917045547,-430.0,0.00023287,2]
[361977150,1747917045556,-658.86,0.00023287,2]
[361977151,1747917045566,-963.68,0.00023287,2]
[361977152,1747917045576,-1076.71,0.00023287,2]
[361977153,1747917045585,-1402.37,0.00023287,2]
[361977154,1747917045595,-3517.68,0.00023287,2]
[361977155,1747917045605,-430.0,0.00023287,2]
[361977156,1747917045614,-1500.0,0.00023306,2]
[361977157,1747917045628,-823.0,0.00023379,2]
[361977158,1747917045638,-823.0,0.00023379,2]
[361977159,1747917045648,-215.0738,0.00023429,2]
[361977160,1747917045658,-572.36557685,0.00023448,2]
[361977161,1747917045668,-3398.76374436,0.00023452,9]
[361977162,1747917045678,-512.50614982,0.00023479,2]
[361977163,1747917045688,-500.0,0.00023479,2]
[361977164,1747917045698,-500.82401651,0.00023479,2]
[361977165,1747917045707,-500.0,0.00023479,2]
[361977166,1747917045717,-501.34430196,0.00023479,2]
[361977167,1747917045726,-500.0,0.00023479,2]
[361977168,1747917045735,-500.0,0.00023479,2]
[361977169,1747917045745,-500.0,0.00023479,2]
[361977170,1747917045754,-500.0,0.00023479,2]
[361977171,1747917045763,-500.0,0.00023479,2]
[361977172,1747917045773,-500.0,0.00023479,2]
[361977173,1747917045781,-500.0,0.00023479,2]
[361977174,1747917045791,-500.0,0.00023479,2]
[361977175,1747917045800,-500.0,0.00023479,2]
[361977176,1747917045809,-500.0,0.00023479,2]
[361977177,1747917045819,-500.0,0.00023479,2]
[361977178,1747917045828,-500.0,0.00023479,2]
[361977179,1747917045838,-500.0,0.00023479,2]
[361977180,1747917045847,-500.0,0.00023479,2]
[361977181,1747917045856,-500.0,0.00023479,2]
[361977182,1747917045865,-500.0,0.00023479,2]
[361977183,1747917045877,-500.0,0.00023479,2]
[361977184,1747917045886,-500.0,0.00023479,2]
[361977185,1747917045896,-500.0,0.00023479,2]
[361977186,1747917045905,-500.0,0.00023479,2]
[361977187,1747917045914,-500.0,0.00023479,2]
[361977188,1747917045923,-500.0,0.00023479,2]
[361977189,1747917045933,-500.0,0.00023479,2]
[361977190,1747917045942,-500.0,0.00023479,2]
[361977191,1747917045952,-500.0,0.00023479,2]
[361977192,1747917045962,-500.0,0.00023479,2]
[361977193,1747917045971,-500.0,0.00023479,2]
[361977194,1747917045982,-500.0,0.00023479,2]
[361977195,1747917045991,-500.0,0.00023479,2]
[361977196,1747917046001,-500.0,0.00023479,2]
[361977197,1747917046011,-438.76396021,0.00023479,2]
[361977198,1747917046020,-522.46317688,0.00023479,2]
[361977199,1747917046030,-152.19365643,0.00023479,2]
[361977200,1747917046039,-500.0,0.00023479,2]
[361977213,1747917046155,-500.0,0.00023479,2]
[361977214,1747917046166,-500.0,0.00023479,2]
[361977215,1747917046176,-500.0,0.00023479,2]
[361977216,1747917046185,-500.0,0.00023479,2]
[361977217,1747917046195,-600.0,0.00023479,2]
[361977218,1747917046204,-525.07549888,0.00023479,2]
[361977219,1747917046213,-537.7774514,0.00023512,2]
[361977220,1747917046223,-1212.683996,0.0002352,2]
[361977221,1747917046233,-430.0,0.00023561,2]
[361977222,1747917046242,-761.92,0.00023561,2]
[361977223,1747917046252,-486.29,0.00023561,2]
[361977224,1747917046261,-430.0,0.00023561,2]
[361977225,1747917046271,-864.01,0.00023561,2]
[361977226,1747917046280,-430.0,0.00023561,2]
[361977227,1747917046289,-430.0,0.00023561,2]
[361977228,1747917046299,-700.05,0.00023561,2]
[361977229,1747917046308,-430.0,0.00023561,2]
[361977231,1747917046317,-430.0,0.00023561,2]
[361977232,1747917046327,-478.52,0.00023561,2]
[361977233,1747917046336,-847.46,0.00023561,2]
[361977234,1747917046347,-768.57,0.00023561,2]
[361977235,1747917046357,-550.47,0.00023561,2]
[361977236,1747917046370,-430.0,0.00023561,2]
[361977237,1747917046380,-430.0,0.00023561,2]
[361977238,1747917046391,-430.0,0.00023561,2]
[361977239,1747917046402,-430.0,0.00023561,2]
[361977240,1747917046413,-430.0,0.00023561,2]
[361977241,1747917046423,-592.36,0.00023561,2]
[361977242,1747917046434,-496.07,0.00023561,2]
[361977243,1747917046445,-5116.24,0.00023561,2]
[361977244,1747917046455,-1561.74,0.00023561,2]
[361977245,1747917046465,-430.0,0.00023561,2]
[361977246,1747917046474,-430.0,0.00023561,2]
[361977248,1747917046484,-1289.79,0.00023561,2]
[361977249,1747917046494,-721.42,0.00023561,2]
[361977251,1747917046505,-430.0,0.00023561,2]
[361977252,1747917046514,-619.16,0.00023561,2]
[361977253,1747917046524,-727.87,0.00023561,2]
[361977254,1747917046535,-430.0,0.00023561,2]
[361977255,1747917046544,-1980.78,0.00023561,2]
[361977256,1747917046554,-512.33,0.00023561,2]
[361977257,1747917046564,-796.1,0.00023561,2]
[361977258,1747917046575,-430.0,0.00023561,2]
[361977259,1747917046585,-430.0,0.00023561,2]
[361977260,1747917046595,-430.0,0.00023561,2]
[361977261,1747917046606,-3666.99,0.00023561,2]
[361977262,1747917046615,-430.0,0.00023561,2]
[361977263,1747917046626,-602.86,0.00023561,2]
[361977264,1747917046637,-1810.6,0.00023561,2]
[361977265,1747917046647,-738.79,0.00023561,2]
[361977266,1747917046657,-430.0,0.00023561,2]
[361977267,1747917046667,-682.98,0.00023561,2]
[361977268,1747917046677,-687.33,0.00023561,2]
[361977269,1747917046687,-430.0,0.00023561,2]
[361977270,1747917046696,-602.34,0.00023561,2]
[361977271,1747917046706,-698.82,0.00023561,2]
[361977272,1747917046716,-1833.09,0.00023561,2]
[361977273,1747917046726,-2202.28,0.00023561,2]
[361977274,1747917046737,-1114.55,0.00023561,2]
[361977275,1747917046747,-1416.81,0.00023561,2]
[361977276,1747917046758,-1799.13,0.00023561,2]
[361977277,1747917046769,-791.88,0.00023561,2]
[361977278,1747917046778,-430.0,0.00023561,2]
[361977279,1747917046788,-739.77,0.00023561,2]
[361977280,1747917046798,-708.22,0.00023561,2]
[361977281,1747917046809,-976.61,0.00023561,2]
[361977282,1747917046818,-302.35796209,0.00023561,2]
[361977283,1747917046828,-1058.22,0.00023561,2]
[361977284,1747917046838,-430.0,0.00023561,2]
[361977285,1747917046847,-778.07,0.00023561,2]
[361977286,1747917046856,-877.65,0.00023561,2]
[361977287,1747917046866,-1986.23,0.00023561,2]
[361977288,1747917046877,-886.94,0.00023561,2]
[361977289,1747917046887,-430.0,0.00023561,2]
[361977290,1747917046897,-2574.06,0.00023561,2]
[361977291,1747917046907,-555.8799665,0.00023561,2]
[361977292,1747917046918,-430.0,0.00023561,2]
[361977293,1747917046928,-430.0,0.00023561,2]
[361977294,1747917046938,-5398.79,0.00023561,2]
[361977295,1747917046948,-430.0,0.00023561,2]
[361977296,1747917046959,-1608.73,0.00023561,2]
[361977297,1747917046969,-430.0,0.00023561,2]
[361977298,1747917046979,-658.86,0.00023561,2]
[361977299,1747917046988,-963.68,0.00023561,2]
[361977300,1747917046998,-1076.71,0.00023561,2]
[361977301,1747917047008,-1402.37,0.00023561,2]
[361977302,1747917047018,-430.0,0.00023561,2]
[361977303,1747917047027,-3398.76374436,0.00023659,9]
[361977304,1747917047037,-900.0,0.00023735,2]
[361977305,1747917047047,-537.7774515,0.00023797,2]
[361977306,1747917047056,-502.88320528,0.00023803,2]
[361977307,1747917047066,-1000.74146517,0.00023803,2]
[361977308,1747917047077,-501.53769284,0.00023803,2]
[361977309,1747917047086,-500.0,0.0002381,2]
[361977310,1747917047098,-500.0,0.0002381,2]
[361977311,1747917047107,-500.0,0.0002381,2]
[361977312,1747917047117,-500.0,0.0002381,2]
[361977313,1747917047128,-531.26352414,0.0002381,2]
[361977314,1747917047139,-165.488062,0.00023835,7]
[361977315,1747917047149,-165.488062,0.00023835,7]
[361977316,1747917047158,-337.298917,0.00023835,7]
[361977317,1747917047170,-337.298917,0.00023835,7]
[361977318,1747917047180,-211.362959,0.00023835,7]
[361977319,1747917047189,-211.362959,0.00023835,7]
[361977320,1747917047199,-392.029989,0.00023835,7]
[361977321,1747917047208,-392.029989,0.00023835,7]
[361977322,1747917047217,-151.0,0.00023835,7]
[361977323,1747917047227,-165.004402,0.00023835,7]
[361977324,1747917047236,-165.004402,0.00023835,7]
[361977325,1747917047246,-975.535324,0.00023835,7]
[361977326,1747917047256,-975.535324,0.00023835,7]
[361977327,1747917047265,-430.0,0.00023835,2]
[361977328,1747917047276,-761.92,0.00023835,2]
[361977329,1747917047286,-486.29,0.00023835,2]
[361977330,1747917047295,-430.0,0.00023835,2]
[361977331,1747917047304,-864.01,0.00023835,2]
[361977332,1747917047314,-430.0,0.00023835,2]
[361977333,1747917047323,-430.0,0.00023835,2]
[361977334,1747917047332,-700.05,0.00023835,2]
[361977335,1747917047342,-430.0,0.00023835,2]
[361977336,1747917047352,-430.0,0.00023835,2]
[361977337,1747917047361,-478.52,0.00023835,2]
[361977338,1747917047372,-847.46,0.00023835,2]
[361977339,1747917047382,-768.57,0.00023835,2]
[361977340,1747917047392,-550.47,0.00023835,2]
[361977341,1747917047401,-430.0,0.00023835,2]
[361977342,1747917047411,-430.0,0.00023835,2]
[361977343,1747917047420,-430.0,0.00023835,2]
[361977344,1747917047430,-430.0,0.00023835,2]
[361977345,1747917047440,-430.0,0.00023835,2]
[361977346,1747917047449,-592.36,0.00023835,2]
[361977347,1747917047458,-496.07,0.00023835,2]
[361977348,1747917047468,-5116.24,0.00023835,2]
[361977349,1747917047478,-1561.74,0.00023835,2]
[361977350,1747917047488,-430.0,0.00023835,2]
[361977351,1747917047498,-430.0,0.00023835,2]
[361977352,1747917047508,-1289.79,0.00023835,2]
[361977353,1747917047518,-721.42,0.00023835,2]
[361977354,1747917047527,-430.0,0.00023835,2]
[361977355,1747917047537,-619.16,0.00023835,2]
[361977356,1747917047547,-727.87,0.00023835,2]
[361977357,1747917047556,-430.0,0.00023835,2]
[361977358,1747917047566,-1980.78,0.00023835,2]
[361977359,1747917047576,-512.33,0.00023835,2]
[361977360,1747917047586,-796.1,0.00023835,2]
[361977361,1747917047595,-430.0,0.00023835,2]
[361977362,1747917047604,-430.0,0.00023835,2]
[361977363,1747917047614,-430.0,0.00023835,2]
[361977364,1747917047624,-3666.99,0.00023835,2]
[361977365,1747917047634,-430.0,0.00023835,2]
[361977366,1747917047643,-602.86,0.00023835,2]
[361977367,1747917047655,-1810.6,0.00023835,2]
[361977368,1747917047664,-738.79,0.00023835,2]
[361977369,1747917047674,-430.0,0.00023835,2]
[361977370,1747917047683,-682.98,0.00023835,2]
[361977371,1747917047694,-687.33,0.00023835,2]
[361977372,1747917047703,-430.0,0.00023835,2]
[361977373,1747917047713,-602.34,0.00023835,2]
[361977374,1747917047723,-698.82,0.00023835,2]
[361977375,1747917047732,-1833.09,0.00023835,2]
[361977376,1747917047742,-2202.28,0.00023835,2]
[361977377,1747917047751,-1114.55,0.00023835,2]
[361977378,1747917047761,-1416.81,0.00023835,2]
[361977379,1747917047770,-1799.13,0.00023835,2]
[361977380,1747917047779,-791.88,0.00023835,2]
[361977381,1747917047789,-430.0,0.00023835,2]
[361977382,1747917047798,-739.77,0.00023835,2]
[361977383,1747917047809,-708.22,0.00023835,2]
[361977384,1747917047818,-976.61,0.00023835,2]
[361977385,1747917047827,-1058.22,0.00023835,2]
[361977386,1747917047837,-430.0,0.00023835,2]
[361977387,1747917047846,-778.07,0.00023835,2]
[361977388,1747917047855,-877.65,0.00023835,2]
[361977389,1747917047864,-1986.23,0.00023835,2]
[361977390,1747917047875,-886.94,0.00023835,2]
[361977391,1747917047884,-430.0,0.00023835,2]
[361977392,1747917047894,-2574.06,0.00023835,2]
[361977393,1747917047903,-430.0,0.00023835,2]
[361977394,1747917047913,-430.0,0.00023835,2]
[361977395,1747917047924,-5398.79,0.00023835,2]
[361977396,1747917047933,-430.0,0.00023835,2]
[361977397,1747917048039,-1608.73,0.00023835,2]
[361977398,1747917048050,-430.0,0.00023835,2]
[361977399,1747917048060,-658.86,0.00023835,2]
[361977400,1747917048071,-963.68,0.00023835,2]
[361977401,1747917048085,-1076.71,0.00023835,2]
[361977402,1747917048095,-1402.37,0.00023835,2]
[361977403,1747917048105,-430.0,0.00023835,2]
[361977404,1747917048114,-2000.0,0.00023854,2]
[361977405,1747917048127,-293.579792,0.00023865,7]
[361977406,1747917048136,-293.579792,0.00023865,7]
[361977407,1747917048146,-3398.76374436,0.00023866,10]
[361977408,1747917048156,-1802.36599431,0.0002388,2]
[361977409,1747917048166,-500.79782686,0.00023894,2]
[361977410,1747917048178,-156.0,0.000239,2]
[361977411,1747917048188,-160.0,0.000239,3]
[361977412,1747917048197,-212.4501065,0.000239,3]
[361977413,1747917048207,-160.0,0.000239,3]
[361977414,1747917048216,-572.36557685,0.000239,2]
[361977415,1747917048226,-6810.30058113,0.000239,2]
[361977416,1747917048235,-396.55713163,0.000239,2]
[361977417,1747917048245,-500.0,0.00023931,2]
[361977418,1747917048255,-500.0,0.00023935,2]
[361977419,1747917048264,-500.0,0.00023935,2]
[361977420,1747917048274,-315.0,0.00023959,3]
[361977421,1747917048283,-315.0,0.00023959,3]
[361977422,1747917048294,-315.0,0.00023959,3]
[361977423,1747917048304,-315.0,0.00023959,3]
[361977424,1747917048313,-176.58861794,0.00023959,3]
[361977425,1747917048323,-168.0,0.00023959,3]
[361977426,1747917048333,-168.0,0.00023959,3]
[361977427,1747917048342,-168.0,0.00023959,3]
[361977428,1747917048352,-168.0,0.00023959,3]
[361977429,1747917048361,-168.0,0.00023959,3]
[361977430,1747917048371,-168.0,0.00023959,3]
[361977431,1747917048382,-168.0,0.00023959,3]
[361977432,1747917048399,-170.54135096,0.00023959,3]
[361977433,1747917048414,-719.0,0.00023959,3]
[361977434,1747917048424,-166.0,0.00023959,3]
[361977435,1747917048437,-166.0,0.00023959,3]
[361977436,1747917048448,-203.06109813,0.00023959,3]
[361977437,1747917048459,-719.0,0.00023959,3]
[361977438,1747917048469,-166.0,0.00023959,3]
[361977439,1747917048479,-166.0,0.00023959,3]
[361977440,1747917048489,-719.0,0.00023959,3]
[361977441,1747917048500,-152.0,0.00023959,3]
[361977442,1747917048510,-719.0,0.00023959,3]
[361977443,1747917048520,-166.0,0.00023959,3]
[361977444,1747917048531,-258.57859842,0.00023959,3]
[361977445,1747917048541,-719.0,0.00023959,3]
[361977446,1747917048550,-166.0,0.00023959,3]
[361977447,1747917048560,-166.0,0.00023959,3]
[361977448,1747917048570,-719.0,0.00023959,3]
[361977449,1747917048580,-166.0,0.00023959,3]
[361977450,1747917048590,-166.0,0.00023959,3]
[361977451,1747917048600,-166.0,0.00023959,3]
[361977452,1747917048610,-719.0,0.00023959,3]
[361977453,1747917048620,-160.0,0.00023959,3]
[361977454,1747917048630,-166.0,0.00023959,3]
[361977455,1747917048640,-166.0,0.00023959,3]
[361977456,1747917048650,-719.0,0.00023959,3]
[361977457,1747917048660,-166.0,0.00023959,3]
[361977458,1747917048670,-172.0,0.00023959,3]
[361977459,1747917048680,-719.0,0.00023959,3]
[361977460,1747917048691,-151.0,0.00023959,3]
[361977461,1747917048701,-166.0,0.00023959,3]
[361977462,1747917048710,-151.0,0.00023959,3]
[361977463,1747917048720,-719.0,0.00023959,3]
[361977464,1747917048730,-166.0,0.00023959,3]
[361977465,1747917048740,-151.0,0.00023959,3]
[361977466,1747917048750,-719.0,0.00023959,3]
[361977467,1747917048759,-166.0,0.00023959,3]
[361977468,1747917048769,-151.0,0.00023959,3]
[361977469,1747917048779,-160.0,0.00023959,3]
[361977470,1747917048789,-172.0,0.00023959,3]
[361977471,1747917048799,-151.0,0.00023959,3]
[361977472,1747917048809,-719.0,0.00023959,3]
[361977473,1747917048819,-719.0,0.00023959,3]
[361977474,1747917048829,-151.0,0.00023959,3]
[361977475,1747917048838,-719.0,0.00023959,3]
[361977476,1747917048848,-151.0,0.00023959,3]
[361977477,1747917048857,-719.0,0.00023959,3]
[361977478,1747917048866,-200.04589674,0.00023959,3]
[361977479,1747917048878,-151.0,0.00023959,3]
[361977480,1747917048888,-719.0,0.00023959,3]
[361977481,1747917048898,-151.0,0.00023959,3]
[361977482,1747917048908,-160.0,0.00023959,3]
[361977483,1747917048918,-719.0,0.00023959,3]
[361977484,1747917048928,-151.0,0.00023959,3]
[361977485,1747917048937,-160.0,0.00023959,3]
[361977486,1747917048947,-719.0,0.00023959,3]
[361977487,1747917048957,-151.0,0.00023959,3]
[361977488,1747917048968,-160.0,0.00023959,3]
[361977489,1747917048978,-719.0,0.00023959,3]
[361977490,1747917048989,-151.0,0.00023959,3]